[Event "*** Titled Tuesday 3|2 Blitz"]
[Site "Chess.com"]
[Date "2015.12.01"]
[Round "5"]
[White "ChadaevNikolay"]
[Black "Dlugy"]
[Result "0-1"]
[WhiteElo "2545"]
[BlackElo "2528"]
[TimeControl "180+2"]
[EndTime "18:00:47 PST"]
[Termination "Dlugy won by resignation"]

1. e4 {[%clk 0:03:01.9]} 1... c5 {[%clk 0:03:01.6]} 2. Nf3 {[%clk 0:03:01.7]}
2... d6 {[%clk 0:03:03.2]} 3. d4 {[%clk 0:02:59.8]} 3... cxd4 {[%clk 0:03:04.5]}
4. Nxd4 {[%clk 0:03:01.2]} 4... Nf6 {[%clk 0:03:05.6]} 5. Nc3 {[%clk 0:03:02.7]}
5... Nc6 {[%clk 0:03:06]} 6. Bg5 {[%clk 0:03:02.5]} 6... e6 {[%clk 0:03:07]} 7.
Qd2 {[%clk 0:03:03.4]} 7... a6 {[%clk 0:03:08.7]} 8. O-O-O {[%clk 0:03:01.9]}
8... h6 {[%clk 0:03:10.1]} 9. Be3 {[%clk 0:02:59.8]} 9... Nxd4 {[%clk
0:03:10.7]} 10. Bxd4 {[%clk 0:02:59]} 10... b5 {[%clk 0:03:11.6]} 11. f3 {[%clk
0:02:59.8]} 11... Qa5 {[%clk 0:03:12.5]} 12. Bxf6 {[%clk 0:02:47.7]} 12... gxf6
{[%clk 0:03:13.1]} 13. Kb1 {[%clk 0:02:48.5]} 13... b4 {[%clk 0:03:05.1]} 14.
Ne2 {[%clk 0:02:48.3]} 14... Qc5 {[%clk 0:03:06.8]} 15. Nd4 {[%clk 0:02:44]}
15... Bd7 {[%clk 0:03:02.9]} 16. f4 {[%clk 0:02:41.9]} 16... h5 {[%clk
0:03:03.6]} 17. g3 {[%clk 0:02:39]} 17... a5 {[%clk 0:03:02.2]} 18. Bh3 {[%clk
0:02:39.3]} 18... a4 {[%clk 0:03:02.5]} 19. Rhe1 {[%clk 0:02:33.8]} 19... a3
{[%clk 0:03:02]} 20. b3 {[%clk 0:02:34]} 20... Rc8 {[%clk 0:03:02]} 21. Qd3
{[%clk 0:02:22.7]} 21... Qc3 {[%clk 0:03:01.9]} 22. Qxc3 {[%clk 0:02:22.8]}
22... Rxc3 {[%clk 0:03:03.5]} 23. Rd3 {[%clk 0:02:14.6]} 23... Rc5 {[%clk
0:02:55.8]} 24. f5 {[%clk 0:02:07.8]} 24... Ke7 {[%clk 0:02:51.3]} 25. Red1
{[%clk 0:02:05.9]} 25... h4 {[%clk 0:02:50.6]} 26. g4 {[%clk 0:01:52]} 26... Bh6
{[%clk 0:02:50.2]} 27. c4 {[%clk 0:01:31.8]} 27... bxc3 {[%clk 0:02:41.1]} 28.
Kc2 {[%clk 0:01:32.6]} 28... Bf4 {[%clk 0:02:40.8]} 29. Rh1 {[%clk 0:01:19.8]}
29... Be5 {[%clk 0:02:36.3]} 30. Bg2 {[%clk 0:01:19.3]} 30... h3 {[%clk
0:02:35.1]} 31. Bf3 {[%clk 0:01:15.8]} 31... Bc8 {[%clk 0:02:27.4]} 32. b4
{[%clk 0:01:12.7]} 32... Rc4 {[%clk 0:02:27.2]} 33. Nb3 {[%clk 0:01:02.9]} 33...
Rxb4 {[%clk 0:02:24.1]} 34. Re3 {[%clk 0:01:03.1]} 34... Ba6 {[%clk 0:02:21.8]}
35. Be2 {[%clk 0:01:03.1]} 35... Bb7 {[%clk 0:02:15.2]} 36. Bf3 {[%clk
0:01:03.3]} 36... Rc8 {[%clk 0:02:10.7]} 37. Re2 {[%clk 0:00:59.7]} 37... Ba6
{[%clk 0:02:09]} 38. Re3 {[%clk 0:00:59.8]} 38... Bf4 {[%clk 0:02:06]} 39. Ree1
{[%clk 0:00:56.9]} 39... Bc4 {[%clk 0:01:58.6]} 40. Rb1 {[%clk 0:00:57.4]} 40...
Rcb8 {[%clk 0:01:56.6]} 41. Rhd1 {[%clk 0:00:53.6]} 41... Bxh2 {[%clk
0:01:52.1]} 42. Rh1 {[%clk 0:00:53.7]} 42... Be5 {[%clk 0:01:53.1]} 43. fxe6
{[%clk 0:00:54.5]} 43... h2 {[%clk 0:01:49.6]} 44. exf7 {[%clk 0:00:54.3]} 44...
Kxf7 {[%clk 0:01:50.9]} 45. g5 {[%clk 0:00:51.2]} 45... fxg5 {[%clk 0:01:51.4]}
46. Bh5+ {[%clk 0:00:52.1]} 46... Ke7 {[%clk 0:01:52.7]} 47. Bg4 {[%clk
0:00:49.2]} 47... Bxb3+ {[%clk 0:01:52.3]} 48. Rxb3 {[%clk 0:00:48.9]} 48...
Rxb3 {[%clk 0:01:53]} 49. axb3 {[%clk 0:00:50]} 49... a2 {[%clk 0:01:52.2]} 50.
Ra1 {[%clk 0:00:49.2]} 50... Rf8 {[%clk 0:01:50.8]} 0-1

[Event "*** Titled Tuesday 3|2 Blitz"]
[Site "Chess.com"]
[Date "2015.12.01"]
[Round "5"]
[White "ItalianMachine"]
[Black "UltimateCrusher2"]
[Result "1-0"]
[WhiteElo "2223"]
[BlackElo "2020"]
[TimeControl "180+2"]
[EndTime "18:01:12 PST"]
[Termination "ItalianMachine won by checkmate"]

1. e4 {[%clk 0:03:01.9]} 1... c5 {[%clk 0:03:00.7]} 2. Nc3 {[%clk 0:03:01.4]}
2... d6 {[%clk 0:02:57.1]} 3. g3 {[%clk 0:03:00.8]} 3... e5 {[%clk 0:02:50.3]}
4. Bg2 {[%clk 0:03:00.6]} 4... Nc6 {[%clk 0:02:51.5]} 5. d3 {[%clk 0:03:00.5]}
5... Nge7 {[%clk 0:02:52.4]} 6. Nge2 {[%clk 0:03:00.3]} 6... g6 {[%clk
0:02:53.7]} 7. h3 {[%clk 0:03:01.4]} 7... Bg7 {[%clk 0:02:55]} 8. O-O {[%clk
0:03:03]} 8... O-O {[%clk 0:02:55.7]} 9. f4 {[%clk 0:03:01.4]} 9... f5 {[%clk
0:02:56.5]} 10. Be3 {[%clk 0:02:58.5]} 10... b6 {[%clk 0:02:55.9]} 11. Kh2
{[%clk 0:02:57]} 11... Rb8 {[%clk 0:02:54]} 12. Qd2 {[%clk 0:02:44.2]} 12... Nd4
{[%clk 0:02:51.8]} 13. Ng1 {[%clk 0:02:19.5]} 13... Be6 {[%clk 0:02:49.4]} 14.
Nd5 {[%clk 0:02:11.9]} 14... Nxd5 {[%clk 0:02:48.1]} 15. exd5 {[%clk 0:02:12.7]}
15... Bf7 {[%clk 0:02:42.5]} 16. a4 {[%clk 0:02:13.8]} 16... b5 {[%clk
0:02:14.2]} 17. axb5 {[%clk 0:01:24.7]} 17... Rxb5 {[%clk 0:02:16.1]} 18. Ra2
{[%clk 0:00:59.9]} 18... Qb6 {[%clk 0:02:13.7]} 19. c3 {[%clk 0:00:55.4]} 19...
Nb3 {[%clk 0:02:07]} 20. Qf2 {[%clk 0:00:54.4]} 20... Na5 {[%clk 0:02:02.5]} 21.
Rfa1 {[%clk 0:00:49.7]} 21... Rb8 {[%clk 0:01:57.8]} 22. b4 {[%clk 0:00:46.7]}
22... Nb7 {[%clk 0:01:43.9]} 23. Ra6 {[%clk 0:00:37.1]} 23... Qc7 {[%clk
0:01:44.3]} 24. Rc6 {[%clk 0:00:36.7]} 24... Qd7 {[%clk 0:01:40]} 25. Rxa7
{[%clk 0:00:35.2]} 25... cxb4 {[%clk 0:01:41]} 26. c4 {[%clk 0:00:36.2]} 26...
Ra5 {[%clk 0:01:38.6]} 27. Bb6 {[%clk 0:00:24]} 27... Rxa7 {[%clk 0:01:37]} 28.
Bxa7 {[%clk 0:00:25.4]} 28... Ra8 {[%clk 0:01:30.3]} 29. Qb6 {[%clk 0:00:27]}
29... Nc5 {[%clk 0:01:20.5]} 30. Rc7 {[%clk 0:00:28.3]} 30... Qd8 {[%clk
0:01:20.2]} 31. Qc6 {[%clk 0:00:26]} 31... Be8 {[%clk 0:01:05.9]} 32. Qb6 {[%clk
0:00:27.3]} 32... Na4 {[%clk 0:00:55.3]} 33. Qb7 {[%clk 0:00:27.7]} 33... Bf8
{[%clk 0:00:49.8]} 34. Nf3 {[%clk 0:00:27]} 34... b3 {[%clk 0:00:50]} 35. Ng5
{[%clk 0:00:26.5]} 35... b2 {[%clk 0:00:48.6]} 36. Rxh7 {[%clk 0:00:28.1]} 36...
Rxa7 {[%clk 0:00:47.2]} 37. Qxa7 {[%clk 0:00:28.2]} 37... b1=Q {[%clk
0:00:44.8]} 38. Rh8+ {[%clk 0:00:29.7]} 38... Kxh8 {[%clk 0:00:42.7]} 39. Qh7#
{[%clk 0:00:31.6]} 1-0

[Event "*** Titled Tuesday 3|2 Blitz"]
[Site "Chess.com"]
[Date "2015.12.01"]
[Round "5"]
[White "Yaacovn"]
[Black "jlandaw"]
[Result "1-0"]
[WhiteElo "2628"]
[BlackElo "2363"]
[TimeControl "180+2"]
[EndTime "18:01:22 PST"]
[Termination "Yaacovn won on time"]

1. d4 {[%clk 0:02:20.1]} 1... Nf6 {[%clk 0:02:58.7]} 2. Nf3 {[%clk 0:02:20.8]}
2... e6 {[%clk 0:02:59.5]} 3. c4 {[%clk 0:02:20.5]} 3... b6 {[%clk 0:03:00.1]}
4. g3 {[%clk 0:02:20.3]} 4... Ba6 {[%clk 0:02:59]} 5. Qc2 {[%clk 0:02:19.9]}
5... Be7 {[%clk 0:02:43.6]} 6. Bg2 {[%clk 0:02:20.3]} 6... O-O {[%clk
0:02:43.1]} 7. O-O {[%clk 0:02:14.8]} 7... c6 {[%clk 0:02:37.3]} 8. b3 {[%clk
0:02:13.7]} 8... d5 {[%clk 0:02:33.6]} 9. Bb2 {[%clk 0:02:10.5]} 9... Nbd7
{[%clk 0:02:32.5]} 10. Nbd2 {[%clk 0:02:09.9]} 10... Rc8 {[%clk 0:02:22.3]} 11.
Rac1 {[%clk 0:02:06.1]} 11... c5 {[%clk 0:02:13.9]} 12. Qb1 {[%clk 0:01:48.6]}
12... cxd4 {[%clk 0:02:00]} 13. Nxd4 {[%clk 0:01:47.9]} 13... Bb4 {[%clk
0:01:44.7]} 14. Rfd1 {[%clk 0:01:41.1]} 14... Bxd2 {[%clk 0:01:35.6]} 15. Rxd2
{[%clk 0:01:41.5]} 15... dxc4 {[%clk 0:01:36.2]} 16. Nc6 {[%clk 0:01:37.3]}
16... Qe8 {[%clk 0:01:17.2]} 17. Nb4 {[%clk 0:01:20.1]} 17... Nc5 {[%clk
0:01:07.7]} 18. Nxa6 {[%clk 0:01:19.4]} 18... Nxa6 {[%clk 0:01:08.3]} 19. Bb7
{[%clk 0:01:17.6]} 19... Nc5 {[%clk 0:00:39.6]} 20. Bxc8 {[%clk 0:01:17.6]}
20... Nfe4 {[%clk 0:00:26.2]} 21. Rd4 {[%clk 0:01:05.3]} 21... Qc6 {[%clk
0:00:15.6]} 22. Rcxc4 {[%clk 0:00:58.6]} 22... Ng5 {[%clk 0:00:12.8]} 23. f3
{[%clk 0:00:42.5]} 23... Rxc8 {[%clk 0:00:06.8]} 24. b4 {[%clk 0:00:41.8]} 24...
Nxf3+ {[%clk 0:00:03.1]} 25. exf3 {[%clk 0:00:40.8]} 25... Qxf3 {[%clk 0:00:05]}
26. bxc5 {[%clk 0:00:36.3]} 26... Qe3+ {[%clk 0:00:06]} 27. Kg2 {[%clk
0:00:35.4]} 27... Qe2+ {[%clk 0:00:07.5]} 28. Kh3 {[%clk 0:00:35.6]} 28... g5
{[%clk 0:00:02.1]} 29. Rg4 {[%clk 0:00:32]} 1-0

[Event "*** Titled Tuesday 3|2 Blitz"]
[Site "Chess.com"]
[Date "2015.12.01"]
[Round "5"]
[White "yopino"]
[Black "ArnaudovP"]
[Result "0-1"]
[WhiteElo "2225"]
[BlackElo "2326"]
[TimeControl "180+2"]
[EndTime "18:01:34 PST"]
[Termination "ArnaudovP won by resignation"]

1. e4 {[%clk 0:03:01.9]} 1... e5 {[%clk 0:02:58.2]} 2. Nf3 {[%clk 0:03:02.1]}
2... Nc6 {[%clk 0:02:57.4]} 3. Bb5 {[%clk 0:03:02.8]} 3... a6 {[%clk 0:02:56.6]}
4. Bxc6 {[%clk 0:03:03.8]} 4... dxc6 {[%clk 0:02:56.6]} 5. O-O {[%clk
0:03:04.7]} 5... Qf6 {[%clk 0:02:56.8]} 6. d4 {[%clk 0:02:56.3]} 6... exd4
{[%clk 0:02:57]} 7. Qxd4 {[%clk 0:02:52.1]} 7... Qxd4 {[%clk 0:02:56.8]} 8. Nxd4
{[%clk 0:02:54]} 8... Bd7 {[%clk 0:02:58.1]} 9. Be3 {[%clk 0:02:50.8]} 9...
O-O-O {[%clk 0:02:59.4]} 10. f3 {[%clk 0:02:49.4]} 10... Re8 {[%clk 0:03:00.3]}
11. Bf2 {[%clk 0:02:47.1]} 11... g6 {[%clk 0:02:59.4]} 12. Nc3 {[%clk
0:02:45.8]} 12... Bg7 {[%clk 0:02:59]} 13. Rad1 {[%clk 0:02:47.2]} 13... Ne7
{[%clk 0:02:55.1]} 14. Rfe1 {[%clk 0:02:33.2]} 14... c5 {[%clk 0:02:55.2]} 15.
Nb3 {[%clk 0:02:33.9]} 15... Bxc3 {[%clk 0:02:53.2]} 16. bxc3 {[%clk 0:02:34.4]}
16... b6 {[%clk 0:02:54.7]} 17. Nc1 {[%clk 0:02:13.9]} 17... Nc6 {[%clk
0:02:32.4]} 18. Nd3 {[%clk 0:02:13.2]} 18... Be6 {[%clk 0:02:32.5]} 19. a3
{[%clk 0:02:13.1]} 19... g5 {[%clk 0:02:20.7]} 20. Bg3 {[%clk 0:02:00.6]} 20...
f6 {[%clk 0:02:17.7]} 21. h4 {[%clk 0:01:51.7]} 21... h6 {[%clk 0:02:14.8]} 22.
Kf2 {[%clk 0:01:52.5]} 22... Na5 {[%clk 0:02:10.4]} 23. f4 {[%clk 0:01:30.5]}
23... Nc4 {[%clk 0:02:07.3]} 24. f5 {[%clk 0:01:31]} 24... Bf7 {[%clk
0:02:05.6]} 25. a4 {[%clk 0:01:24.6]} 25... a5 {[%clk 0:02:07.5]} 26. e5 {[%clk
0:01:17.8]} 26... gxh4 {[%clk 0:02:03.2]} 27. Bf4 {[%clk 0:01:12.4]} 27... fxe5
{[%clk 0:02:03.9]} 28. Nxe5 {[%clk 0:01:12.7]} 28... Nxe5 {[%clk 0:02:03.3]} 29.
Bxe5 {[%clk 0:01:10.1]} 29... Rhg8 {[%clk 0:01:53.2]} 30. Bf4 {[%clk 0:01:11.1]}
30... Rg4 {[%clk 0:01:51.5]} 31. Kf3 {[%clk 0:00:53.7]} 31... h5 {[%clk
0:01:44.4]} 32. Rxe8+ {[%clk 0:00:44.5]} 32... Bxe8 {[%clk 0:01:44.1]} 33. Ke4
{[%clk 0:00:43.7]} 33... Rxg2 {[%clk 0:01:39]} 34. f6 {[%clk 0:00:43.7]} 34...
h3 {[%clk 0:01:36.9]} 35. Rh1 {[%clk 0:00:39.1]} 35... Bg6+ {[%clk 0:01:36.4]}
36. Kf3 {[%clk 0:00:39]} 36... Kd7 {[%clk 0:01:34.9]} 37. Rxh3 {[%clk
0:00:39.9]} 37... Rxc2 {[%clk 0:01:35.6]} 38. Rg3 {[%clk 0:00:38.7]} 38... Rxc3+
{[%clk 0:01:36.3]} 39. Kf2 {[%clk 0:00:39.3]} 39... Rxg3 {[%clk 0:01:35.3]} 40.
Kxg3 {[%clk 0:00:41.2]} 40... Be8 {[%clk 0:01:32.9]} 41. Kh4 {[%clk 0:00:40.9]}
41... c6 {[%clk 0:01:27.8]} 42. Kg5 {[%clk 0:00:41]} 42... Ke6 {[%clk
0:01:25.6]} 43. Bc7 {[%clk 0:00:40.9]} 43... b5 {[%clk 0:01:25.5]} 44. Bxa5
{[%clk 0:00:40]} 44... bxa4 {[%clk 0:01:27]} 45. Bc3 {[%clk 0:00:40.7]} 45... c4
{[%clk 0:01:25.7]} 46. Bb2 {[%clk 0:00:39.6]} 46... Kd5 {[%clk 0:01:25.9]} 47.
Kh6 {[%clk 0:00:39.5]} 47... h4 {[%clk 0:01:24.8]} 48. Bc1 {[%clk 0:00:34.4]}
48... h3 {[%clk 0:01:24.7]} 49. Bf4 {[%clk 0:00:33.3]} 49... a3 {[%clk
0:01:25.3]} 0-1

[Event "*** Titled Tuesday 3|2 Blitz"]
[Site "Chess.com"]
[Date "2015.12.01"]
[Round "5"]
[White "AnimationDomination"]
[Black "gumersindo"]
[Result "0-1"]
[WhiteElo "1716"]
[BlackElo "2202"]
[TimeControl "180+2"]
[EndTime "18:01:41 PST"]
[Termination "gumersindo won by resignation"]

1. d4 {[%clk 0:03:01.9]} 1... d5 {[%clk 0:02:59.3]} 2. c4 {[%clk 0:03:02.9]}
2... c6 {[%clk 0:03:00.2]} 3. Nc3 {[%clk 0:03:03.2]} 3... Nf6 {[%clk 0:03:01.6]}
4. Bf4 {[%clk 0:03:03.5]} 4... e6 {[%clk 0:03:01.2]} 5. e3 {[%clk 0:03:03.7]}
5... Nbd7 {[%clk 0:03:02.6]} 6. Nf3 {[%clk 0:03:02.5]} 6... a6 {[%clk
0:03:01.4]} 7. Bg3 {[%clk 0:03:01.5]} 7... b5 {[%clk 0:03:02.4]} 8. cxd5 {[%clk
0:02:57.8]} 8... cxd5 {[%clk 0:02:58.7]} 9. a3 {[%clk 0:02:57]} 9... Bb7 {[%clk
0:02:57.4]} 10. Bd3 {[%clk 0:02:55.9]} 10... Be7 {[%clk 0:02:55.8]} 11. O-O
{[%clk 0:02:53]} 11... O-O {[%clk 0:02:56.9]} 12. Rc1 {[%clk 0:02:49.6]} 12...
Nb6 {[%clk 0:02:57.7]} 13. Qe2 {[%clk 0:02:39.3]} 13... Nc4 {[%clk 0:02:55.5]}
14. Bxc4 {[%clk 0:02:38.5]} 14... dxc4 {[%clk 0:02:57]} 15. Ne5 {[%clk
0:02:39.3]} 15... Nd5 {[%clk 0:02:55]} 16. Rfd1 {[%clk 0:02:25.3]} 16... Rc8
{[%clk 0:02:48.1]} 17. f3 {[%clk 0:02:15]} 17... f6 {[%clk 0:02:41.8]} 18. Ng4
{[%clk 0:02:11.2]} 18... h5 {[%clk 0:02:42.6]} 19. Nf2 {[%clk 0:02:10.2]} 19...
Bd6 {[%clk 0:02:38]} 20. Bxd6 {[%clk 0:01:57.4]} 20... Qxd6 {[%clk 0:02:37.3]}
21. Qd2 {[%clk 0:01:55.9]} 21... f5 {[%clk 0:02:34.5]} 22. e4 {[%clk 0:01:54.4]}
22... Ne7 {[%clk 0:02:30.3]} 23. Nh3 {[%clk 0:01:48.4]} 23... fxe4 {[%clk
0:02:30.3]} 24. fxe4 {[%clk 0:01:48.6]} 24... e5 {[%clk 0:02:29.6]} 25. Ng5
{[%clk 0:01:30]} 25... Nc6 {[%clk 0:02:26.7]} 26. d5 {[%clk 0:00:55.2]} 26...
Nd4 {[%clk 0:02:27.6]} 27. Qe3 {[%clk 0:00:49.6]} 27... Qg6 {[%clk 0:02:21.1]}
28. Rf1 {[%clk 0:00:44.4]} 28... Rcd8 {[%clk 0:02:05.3]} 29. Nf3 {[%clk
0:00:40.4]} 29... Nxf3+ {[%clk 0:02:04]} 30. Rxf3 {[%clk 0:00:40.9]} 30... Rxf3
{[%clk 0:02:03.4]} 31. Qxf3 {[%clk 0:00:41.5]} 31... Rf8 {[%clk 0:02:04.7]} 32.
Qe2 {[%clk 0:00:41.5]} 32... Qb6+ {[%clk 0:01:58.8]} 33. Kh1 {[%clk 0:00:39.5]}
33... Qf2 {[%clk 0:01:56.2]} 34. Re1 {[%clk 0:00:35.8]} 34... a5 {[%clk
0:01:48.4]} 35. h3 {[%clk 0:00:32.3]} 35... b4 {[%clk 0:01:46.9]} 36. axb4
{[%clk 0:00:32.7]} 36... axb4 {[%clk 0:01:47.6]} 37. Nb5 {[%clk 0:00:33.6]}
37... Qc5 {[%clk 0:01:44.1]} 38. Qxh5 {[%clk 0:00:22.6]} 38... Qxb5 {[%clk
0:01:43.2]} 39. Qxe5 {[%clk 0:00:23.4]} 39... Qd7 {[%clk 0:01:39.6]} 40. Qd4
{[%clk 0:00:21.5]} 40... Ba6 {[%clk 0:01:38.9]} 41. Rd1 {[%clk 0:00:22.2]} 41...
Rc8 {[%clk 0:01:36.5]} 42. e5 {[%clk 0:00:23.3]} 42... c3 {[%clk 0:01:38]} 43.
bxc3 {[%clk 0:00:24.2]} 43... bxc3 {[%clk 0:01:38.8]} 44. Rc1 {[%clk 0:00:24]}
44... c2 {[%clk 0:01:39.4]} 45. e6 {[%clk 0:00:22.8]} 45... Qd6 {[%clk
0:01:37.9]} 46. Kg1 {[%clk 0:00:21.3]} 46... Qc5 {[%clk 0:01:35.4]} 47. Qxc5
{[%clk 0:00:22.7]} 47... Rxc5 {[%clk 0:01:35.9]} 48. Kf2 {[%clk 0:00:24.2]}
48... Rxd5 {[%clk 0:01:35.3]} 49. Re1 {[%clk 0:00:21.5]} 49... Kf8 {[%clk
0:01:34.1]} 50. e7+ {[%clk 0:00:23.1]} 50... Ke8 {[%clk 0:01:35.1]} 0-1

[Event "*** Titled Tuesday 3|2 Blitz"]
[Site "Chess.com"]
[Date "2015.12.01"]
[Round "5"]
[White "cheese111"]
[Black "Alliswell998"]
[Result "1-0"]
[WhiteElo "2215"]
[BlackElo "2133"]
[TimeControl "180+2"]
[EndTime "18:01:50 PST"]
[Termination "cheese111 won by resignation"]

1. e4 {[%clk 0:03:01.9]} 1... c5 {[%clk 0:03:00.9]} 2. Nf3 {[%clk 0:03:02.5]}
2... d6 {[%clk 0:03:02.4]} 3. Bb5+ {[%clk 0:03:02.4]} 3... Bd7 {[%clk
0:03:02.9]} 4. Bxd7+ {[%clk 0:03:03.2]} 4... Nxd7 {[%clk 0:03:04.8]} 5. O-O
{[%clk 0:03:03.9]} 5... Ngf6 {[%clk 0:03:06.2]} 6. Qe2 {[%clk 0:03:04.8]} 6...
Qc7 {[%clk 0:03:07.4]} 7. Rd1 {[%clk 0:03:04.2]} 7... Rc8 {[%clk 0:03:07.9]} 8.
c4 {[%clk 0:02:59.8]} 8... g6 {[%clk 0:03:07.4]} 9. Nc3 {[%clk 0:02:59.9]} 9...
Bg7 {[%clk 0:03:05.7]} 10. b3 {[%clk 0:02:52.3]} 10... O-O {[%clk 0:03:03.6]}
11. Bb2 {[%clk 0:02:52.8]} 11... Qb8 {[%clk 0:03:02.2]} 12. d4 {[%clk
0:02:52.9]} 12... cxd4 {[%clk 0:03:02.5]} 13. Nxd4 {[%clk 0:02:54.8]} 13... a6
{[%clk 0:03:01.9]} 14. Rac1 {[%clk 0:02:54.8]} 14... Rfd8 {[%clk 0:02:58.8]} 15.
Nd5 {[%clk 0:02:38.8]} 15... e6 {[%clk 0:02:57.1]} 16. Ne7+ {[%clk 0:02:37.9]}
16... Kf8 {[%clk 0:02:56.2]} 17. Nxc8 {[%clk 0:02:38.8]} 17... Qxc8 {[%clk
0:02:57.9]} 18. Nf3 {[%clk 0:02:36.1]} 18... e5 {[%clk 0:02:48.8]} 19. Rxd6
{[%clk 0:02:32.2]} 19... Ne8 {[%clk 0:02:48.7]} 20. Rd3 {[%clk 0:02:25.1]} 20...
Nb8 {[%clk 0:01:32.9]} 21. Rxd8 {[%clk 0:02:22.9]} 21... Qxd8 {[%clk 0:01:34.8]}
22. Bxe5 {[%clk 0:02:11.3]} 22... Bxe5 {[%clk 0:01:32.6]} 23. Nxe5 {[%clk
0:02:13.2]} 23... Qg5 {[%clk 0:01:33.8]} 24. Nd3 {[%clk 0:02:13.8]} 24... Nc6
{[%clk 0:01:30.7]} 25. Rd1 {[%clk 0:02:09.5]} 25... Nf6 {[%clk 0:01:27.4]} 26.
e5 {[%clk 0:01:57.7]} 26... Ng4 {[%clk 0:01:27]} 27. h3 {[%clk 0:01:58]} 27...
Ngxe5 {[%clk 0:01:24.4]} 28. Nxe5 {[%clk 0:01:58.7]} 28... Nxe5 {[%clk
0:01:22.6]} 29. Re1 {[%clk 0:01:56.9]} 29... f6 {[%clk 0:01:20.1]} 30. Qe3
{[%clk 0:01:56.7]} 30... Qxe3 {[%clk 0:01:04]} 31. Rxe3 {[%clk 0:01:58.6]} 31...
Kf7 {[%clk 0:01:02.9]} 32. Kf1 {[%clk 0:01:59.3]} 32... g5 {[%clk 0:01:03]} 33.
Ke2 {[%clk 0:01:57.7]} 33... Ke6 {[%clk 0:01:03.7]} 34. Kd2 {[%clk 0:01:54.3]}
34... Kd6 {[%clk 0:01:03.5]} 35. Kc3 {[%clk 0:01:55.1]} 35... a5 {[%clk
0:01:02.9]} 36. a3 {[%clk 0:01:55.2]} 36... f5 {[%clk 0:01:01.3]} 37. c5+ {[%clk
0:01:38.8]} 37... Kd5 {[%clk 0:00:58.4]} 38. b4 {[%clk 0:01:34]} 38... f4 {[%clk
0:00:53.7]} 39. Rxe5+ {[%clk 0:01:26.5]} 39... Kxe5 {[%clk 0:00:54]} 40. f3
{[%clk 0:01:27]} 40... Kd5 {[%clk 0:00:52.5]} 41. Kd3 {[%clk 0:01:27.5]} 41...
h6 {[%clk 0:00:42.6]} 42. Kc3 {[%clk 0:01:27.8]} 42... axb4+ {[%clk 0:00:12]}
43. axb4 {[%clk 0:01:27.8]} 43... h5 {[%clk 0:00:13.1]} 44. Kd3 {[%clk
0:01:28.2]} 44... Ke5 {[%clk 0:00:05.9]} 45. Kc4 {[%clk 0:01:28.9]} 45... Kf5
{[%clk 0:00:03.5]} 46. b5 {[%clk 0:01:24.9]} 46... g4 {[%clk 0:00:05.1]} 47.
hxg4+ {[%clk 0:01:25.2]} 47... hxg4 {[%clk 0:00:05.1]} 48. Kd5 {[%clk
0:01:24.3]} 48... gxf3 {[%clk 0:00:05]} 49. gxf3 {[%clk 0:01:25.5]} 49... Kg5
{[%clk 0:00:06.3]} 50. Ke4 {[%clk 0:01:26.2]} 50... Kg6 {[%clk 0:00:06.2]} 51.
c6 {[%clk 0:01:23.7]} 51... Kf6 {[%clk 0:00:08.1]} 52. cxb7 {[%clk 0:01:23.7]}
1-0

[Event "*** Titled Tuesday 3|2 Blitz"]
[Site "Chess.com"]
[Date "2015.12.01"]
[Round "5"]
[White "GrigorGrigorov"]
[Black "dawnrule"]
[Result "0-1"]
[WhiteElo "2504"]
[BlackElo "2247"]
[TimeControl "180+2"]
[EndTime "18:01:52 PST"]
[Termination "dawnrule won by resignation"]

1. e4 {[%clk 0:03:01.9]} 1... c5 {[%clk 0:02:58.8]} 2. Be2 {[%clk 0:03:01.6]}
2... Nc6 {[%clk 0:02:59.1]} 3. f4 {[%clk 0:03:01.5]} 3... d6 {[%clk 0:02:57]} 4.
Nf3 {[%clk 0:03:01.9]} 4... Nf6 {[%clk 0:02:57.7]} 5. d3 {[%clk 0:03:02.5]} 5...
g6 {[%clk 0:02:57.8]} 6. O-O {[%clk 0:03:03.2]} 6... Bg7 {[%clk 0:02:59.1]} 7.
Qe1 {[%clk 0:03:01]} 7... O-O {[%clk 0:02:57.9]} 8. c3 {[%clk 0:02:52.1]} 8...
e6 {[%clk 0:02:48.7]} 9. Kh1 {[%clk 0:02:49.6]} 9... b5 {[%clk 0:02:47.7]} 10.
a3 {[%clk 0:02:48.6]} 10... Re8 {[%clk 0:02:40.2]} 11. Be3 {[%clk 0:02:48.8]}
11... Rb8 {[%clk 0:02:38.4]} 12. Nbd2 {[%clk 0:02:42.5]} 12... a5 {[%clk
0:02:32]} 13. d4 {[%clk 0:02:32.3]} 13... cxd4 {[%clk 0:02:29.4]} 14. Nxd4
{[%clk 0:02:21.2]} 14... Nxd4 {[%clk 0:02:28.4]} 15. Bxd4 {[%clk 0:02:18.9]}
15... e5 {[%clk 0:02:22]} 16. fxe5 {[%clk 0:02:18.5]} 16... dxe5 {[%clk
0:02:23.9]} 17. Be3 {[%clk 0:02:19.3]} 17... Qc7 {[%clk 0:02:06.1]} 18. Qf2
{[%clk 0:02:04.1]} 18... Be6 {[%clk 0:02:02.4]} 19. h3 {[%clk 0:02:02.4]} 19...
Qc6 {[%clk 0:01:32.4]} 20. Qh4 {[%clk 0:01:56.9]} 20... Nd7 {[%clk 0:01:16.3]}
21. Rf2 {[%clk 0:01:53.4]} 21... b4 {[%clk 0:01:03.8]} 22. axb4 {[%clk
0:01:51.7]} 22... axb4 {[%clk 0:01:03.2]} 23. c4 {[%clk 0:01:42.8]} 23... b3
{[%clk 0:00:53.2]} 24. Raf1 {[%clk 0:01:39.3]} 24... Nc5 {[%clk 0:00:48.4]} 25.
Bg4 {[%clk 0:01:24.7]} 25... Nd3 {[%clk 0:00:42.8]} 26. Rf3 {[%clk 0:01:13.2]}
26... Nxb2 {[%clk 0:00:31.7]} 27. Bxe6 {[%clk 0:01:13.1]} 27... Qxe6 {[%clk
0:00:33.6]} 28. Bh6 {[%clk 0:01:09.4]} 28... Bxh6 {[%clk 0:00:24.6]} 29. Qxh6
{[%clk 0:01:09.6]} 29... Re7 {[%clk 0:00:22.6]} 30. Rf6 {[%clk 0:01:02.4]} 30...
Qd7 {[%clk 0:00:21.1]} 31. Nf3 {[%clk 0:01:03.5]} 31... Re6 {[%clk 0:00:04.5]}
32. Ng5 {[%clk 0:01:02.1]} 32... Rxf6 {[%clk 0:00:06]} 33. Rxf6 {[%clk
0:00:59.9]} 33... Qd1+ {[%clk 0:00:06.5]} 34. Kh2 {[%clk 0:01:00.2]} 34... Qh5
{[%clk 0:00:07.6]} 35. Qxh5 {[%clk 0:00:38.1]} 35... gxh5 {[%clk 0:00:09.5]} 36.
c5 {[%clk 0:00:36.1]} 36... Nc4 {[%clk 0:00:10.3]} 37. c6 {[%clk 0:00:33.5]}
37... b2 {[%clk 0:00:11.6]} 38. c7 {[%clk 0:00:35.2]} 38... Rc8 {[%clk
0:00:12.8]} 39. Rf1 {[%clk 0:00:32.6]} 39... Nd2 {[%clk 0:00:14]} 40. Rd1 {[%clk
0:00:32.5]} 40... b1=Q {[%clk 0:00:15.3]} 41. Rxd2 {[%clk 0:00:34.1]} 41... Rxc7
{[%clk 0:00:14.1]} 0-1